[Event "Early-Titled-Tuesday-Blitz-May-14-2024"]
[Site "Chess.com"]
[Date "2024.05.14"]
[Round "2"]
[White "bascheyaro"]
[Black "santosalberto1987"]
[Result "1/2-1/2"]
[WhiteElo "2814"]
[BlackElo "2573"]
[TimeControl "180+1"]
[EndTime "8:19:44 PDT"]
[Termination "Game drawn by repetition"]

1. d4 {[%clk 0:03:00.9]} 1... Nf6 {[%clk 0:02:59.8]} 2. Bg5 {[%clk 0:03:00.5]}
2... Ne4 {[%clk 0:02:59]} 3. Bh4 {[%clk 0:03:00.4]} 3... c5 {[%clk 0:02:58.8]}
4. c3 {[%clk 0:02:55.6]} 4... cxd4 {[%clk 0:02:56.5]} 5. Qxd4 {[%clk 0:02:55.3]}
5... d5 {[%clk 0:02:50.4]} 6. e3 {[%clk 0:02:53.9]} 6... Nc6 {[%clk 0:02:49.2]}
7. Bb5 {[%clk 0:02:52.9]} 7... Qd6 {[%clk 0:02:28.1]} 8. Nf3 {[%clk 0:02:49.6]}
8... Bd7 {[%clk 0:02:18.1]} 9. Bxc6 {[%clk 0:02:49.5]} 9... Bxc6 {[%clk
0:02:18.1]} 10. Nbd2 {[%clk 0:02:49.1]} 10... Nxd2 {[%clk 0:02:17.6]} 11. Qxd2
{[%clk 0:02:48.9]} 11... e5 {[%clk 0:02:12.9]} 12. Rd1 {[%clk 0:02:36.3]} 12...
Be7 {[%clk 0:02:10.6]} 13. c4 {[%clk 0:02:08.6]} 13... Rd8 {[%clk 0:01:38.4]}
14. cxd5 {[%clk 0:01:47.9]} 14... Bxd5 {[%clk 0:01:31]} 15. Bxe7 {[%clk
0:01:44.5]} 15... Qxe7 {[%clk 0:01:27.3]} 16. Qa5 {[%clk 0:01:32.2]} 16... Bxf3
{[%clk 0:00:48.7]} 17. Rxd8+ {[%clk 0:01:31.4]} 17... Qxd8 {[%clk 0:00:49.6]}
18. Qxe5+ {[%clk 0:01:31.5]} 18... Qe7 {[%clk 0:00:49.7]} 19. Qxe7+ {[%clk
0:01:15]} 19... Kxe7 {[%clk 0:00:49.6]} 20. gxf3 {[%clk 0:01:15.5]} 20... Rc8
{[%clk 0:00:50.1]} 21. Kd2 {[%clk 0:01:15.5]} 21... Rd8+ {[%clk 0:00:50.5]} 22.
Ke2 {[%clk 0:01:16]} 22... Rc8 {[%clk 0:00:50.8]} 23. Rd1 {[%clk 0:01:16.2]}
23... Rc2+ {[%clk 0:00:50.3]} 24. Rd2 {[%clk 0:01:16.6]} 24... Rc1 {[%clk
0:00:50.7]} 25. f4 {[%clk 0:00:59.3]} 25... Rh1 {[%clk 0:00:47.5]} 26. Rc2
{[%clk 0:00:53.5]} 26... Kd7 {[%clk 0:00:47.6]} 27. Rd2+ {[%clk 0:00:54]} 27...
Ke6 {[%clk 0:00:44.1]} 28. Rd8 {[%clk 0:00:53]} 28... Rxh2 {[%clk 0:00:43.5]}
29. Rb8 {[%clk 0:00:53]} 29... Rh5 {[%clk 0:00:29.5]} 30. Rxb7 {[%clk
0:00:52.7]} 30... Ra5 {[%clk 0:00:30]} 31. a3 {[%clk 0:00:52]} 31... h5 {[%clk
0:00:30]} 32. Kf3 {[%clk 0:00:51.7]} 32... g6 {[%clk 0:00:28.9]} 33. Rb4 {[%clk
0:00:47.3]} 33... Kf6 {[%clk 0:00:23]} 34. a4 {[%clk 0:00:47.1]} 34... Rc5
{[%clk 0:00:19.8]} 35. b3 {[%clk 0:00:44.1]} 35... a5 {[%clk 0:00:18.4]} 36.
Rb6+ {[%clk 0:00:33.2]} 36... Ke7 {[%clk 0:00:17.6]} 37. b4 {[%clk 0:00:32.4]}
37... axb4 {[%clk 0:00:17.4]} 38. Rxb4 {[%clk 0:00:33]} 38... Ra5 {[%clk
0:00:18]} 39. Kg3 {[%clk 0:00:32.1]} 39... Ke6 {[%clk 0:00:17.9]} 40. Rd4 {[%clk
0:00:30.4]} 40... Kf6 {[%clk 0:00:17.6]} 41. f3 {[%clk 0:00:30.7]} 41... Ke6
{[%clk 0:00:17.8]} 42. e4 {[%clk 0:00:31.1]} 42... Kf6 {[%clk 0:00:18.2]} 43.
Kh4 {[%clk 0:00:31.6]} 43... Ke6 {[%clk 0:00:18.1]} 44. Rb4 {[%clk 0:00:29.9]}
44... Kf6 {[%clk 0:00:18.2]} 45. Rc4 {[%clk 0:00:22.8]} 45... Ke6 {[%clk
0:00:18.2]} 46. Kg3 {[%clk 0:00:23.3]} 46... Kf6 {[%clk 0:00:18.3]} 47. Kf2
{[%clk 0:00:23.7]} 47... Ke6 {[%clk 0:00:18.5]} 48. Ke3 {[%clk 0:00:24.3]} 48...
Kf6 {[%clk 0:00:18.9]} 49. Kd3 {[%clk 0:00:22.9]} 49... Ra8 {[%clk 0:00:18.6]}
50. Kd2 {[%clk 0:00:18.3]} 50... Ke6 {[%clk 0:00:18.4]} 51. Ke3 {[%clk
0:00:18.6]} 51... Kf6 {[%clk 0:00:18.6]} 52. Rb4 {[%clk 0:00:18.3]} 52... Ke6
{[%clk 0:00:18.8]} 53. Kf2 {[%clk 0:00:19]} 53... Kf6 {[%clk 0:00:18.9]} 54. Kg3
{[%clk 0:00:19.6]} 54... Ke6 {[%clk 0:00:19.2]} 55. Kh4 {[%clk 0:00:20.2]} 55...
Kf6 {[%clk 0:00:19.4]} 56. Rc4 {[%clk 0:00:20.1]} 56... Ra5 {[%clk 0:00:19.1]}
57. Rd4 {[%clk 0:00:20]} 57... Ke6 {[%clk 0:00:19.4]} 58. Rb4 {[%clk 0:00:20.1]}
58... Kf6 {[%clk 0:00:19.8]} 59. Kh3 {[%clk 0:00:18.5]} 59... Ke6 {[%clk
0:00:20.1]} 60. Rc4 {[%clk 0:00:18.5]} 60... Kf6 {[%clk 0:00:20.5]} 61. Rd4
{[%clk 0:00:08.4]} 61... Ke6 {[%clk 0:00:20.8]} 62. Kg2 {[%clk 0:00:08.3]} 62...
Kf6 {[%clk 0:00:20.9]} 63. e5+ {[%clk 0:00:08.9]} 63... Kf5 {[%clk 0:00:17.9]}
64. Kg3 {[%clk 0:00:09.4]} 64... Ke6 {[%clk 0:00:17]} 65. Rd6+ {[%clk
0:00:09.5]} 65... Ke7 {[%clk 0:00:17.2]} 66. Rd4 {[%clk 0:00:08.4]} 66... Ke6
{[%clk 0:00:17.3]} 67. Rb4 {[%clk 0:00:08.9]} 67... Ke7 {[%clk 0:00:15.5]} 68.
f5 {[%clk 0:00:08.6]} 68... Rxe5 {[%clk 0:00:13.4]} 69. fxg6 {[%clk 0:00:09.1]}
69... fxg6 {[%clk 0:00:13.7]} 70. Rb7+ {[%clk 0:00:07]} 70... Kf6 {[%clk
0:00:13.7]} 71. Ra7 {[%clk 0:00:07.2]} 71... Re1 {[%clk 0:00:13.4]} 72. Ra6+
{[%clk 0:00:05.9]} 72... Kg5 {[%clk 0:00:13.4]} 73. Ra5+ {[%clk 0:00:06.4]}
73... Kf6 {[%clk 0:00:12.8]} 74. f4 {[%clk 0:00:07.3]} 74... Ra1 {[%clk
0:00:12.4]} 75. Ra6+ {[%clk 0:00:07.8]} 75... Kf5 {[%clk 0:00:12.5]} 76. Ra5+
{[%clk 0:00:08.7]} 76... Kf6 {[%clk 0:00:12.7]} 77. Ra6+ {[%clk 0:00:09.4]}
77... Kf5 {[%clk 0:00:13]} 78. Ra5+ {[%clk 0:00:10.1]} 78... Kf6 {[%clk
0:00:13.2]} 1/2-1/2

[Event "Early-Titled-Tuesday-Blitz-May-14-2024"]
[Site "Chess.com"]
[Date "2024.05.14"]
[Round "2"]
[White "kritipatel"]
[Black "IndianSchoolOfSuffering"]
[Result "0-1"]
[WhiteElo "2182"]
[BlackElo "2482"]
[TimeControl "180+1"]
[EndTime "8:19:46 PDT"]
[Termination "IndianSchoolOfSuffering won by resignation"]

1. e4 {[%clk 0:02:58.9]} 1... c5 {[%clk 0:02:54.7]} 2. d4 {[%clk 0:02:58.6]}
2... cxd4 {[%clk 0:02:54.2]} 3. c3 {[%clk 0:02:59.3]} 3... dxc3 {[%clk
0:02:53.5]} 4. Nxc3 {[%clk 0:03:00.2]} 4... Nc6 {[%clk 0:02:53.7]} 5. Nf3 {[%clk
0:03:00.8]} 5... d6 {[%clk 0:02:49.8]} 6. Bc4 {[%clk 0:02:59.9]} 6... a6 {[%clk
0:02:49.5]} 7. O-O {[%clk 0:03:00]} 7... Nf6 {[%clk 0:02:49.1]} 8. Qe2 {[%clk
0:02:57.7]} 8... Bg4 {[%clk 0:02:47.8]} 9. Rd1 {[%clk 0:02:49]} 9... e6 {[%clk
0:02:46.9]} 10. Bf4 {[%clk 0:02:45.7]} 10... Qb8 {[%clk 0:02:45.6]} 11. Rac1
{[%clk 0:02:38.8]} 11... Be7 {[%clk 0:02:44.3]} 12. h3 {[%clk 0:02:37.9]} 12...
Bh5 {[%clk 0:02:43.5]} 13. Bb3 {[%clk 0:02:35.4]} 13... O-O {[%clk 0:02:43.2]}
14. Na4 {[%clk 0:02:29.2]} 14... Nd7 {[%clk 0:02:13.9]} 15. Qe3 {[%clk
0:02:03.7]} 15... Bxf3 {[%clk 0:02:05]} 16. Qxf3 {[%clk 0:02:03.3]} 16... Nce5
{[%clk 0:02:03.3]} 17. Qg3 {[%clk 0:02:01.9]} 17... b5 {[%clk 0:02:01.8]} 18.
Nc3 {[%clk 0:02:01]} 18... Bf6 {[%clk 0:01:55.3]} 19. Bxe5 {[%clk 0:01:47.5]}
19... Nxe5 {[%clk 0:01:52.2]} 20. f4 {[%clk 0:01:47.3]} 20... Nd7 {[%clk
0:01:48.6]} 21. f5 {[%clk 0:01:45.7]} 21... Be5 {[%clk 0:01:46.6]} 22. Qg4
{[%clk 0:01:42.6]} 22... Bxc3 {[%clk 0:01:34.6]} 23. Rxc3 {[%clk 0:01:40.2]}
23... Ne5 {[%clk 0:01:32.6]} 24. Qg5 {[%clk 0:01:33.4]} 24... exf5 {[%clk
0:01:31.6]} 25. exf5 {[%clk 0:01:30.4]} 25... Qb6+ {[%clk 0:01:23.7]} 26. Kh2
{[%clk 0:01:24.3]} 26... Qd8 {[%clk 0:01:18.4]} 27. f6 {[%clk 0:01:17]} 27...
Ng6 {[%clk 0:01:10.8]} 28. Rcd3 {[%clk 0:01:02.5]} 28... Qxf6 {[%clk 0:01:07.8]}
29. Qxf6 {[%clk 0:01:02.2]} 29... gxf6 {[%clk 0:01:07.7]} 30. Rxd6 {[%clk
0:01:01.8]} 30... Kg7 {[%clk 0:01:06.6]} 31. Rf1 {[%clk 0:01:01.3]} 31... Ra7
{[%clk 0:01:02.3]} 32. Rfxf6 {[%clk 0:00:57.6]} 32... a5 {[%clk 0:01:01.3]} 33.
Rb6 {[%clk 0:00:55.9]} 33... a4 {[%clk 0:00:59]} 34. Bc2 {[%clk 0:00:54]} 34...
Rd8 {[%clk 0:00:54]} 35. Rfc6 {[%clk 0:00:49.6]} 35... Rd2 {[%clk 0:00:46.5]}
36. Rxb5 {[%clk 0:00:47.1]} 36... Re7 {[%clk 0:00:46.2]} 37. Bxa4 {[%clk
0:00:39]} 37... Ree2 {[%clk 0:00:40.7]} 38. Rg5 {[%clk 0:00:36.8]} 38... Rxb2
{[%clk 0:00:39.4]} 39. Bb3 {[%clk 0:00:36.8]} 39... Rf2 {[%clk 0:00:34]} 40. h4
{[%clk 0:00:30.7]} 40... h6 {[%clk 0:00:21.3]} 41. Rg4 {[%clk 0:00:24.4]} 41...
h5 {[%clk 0:00:17.7]} 42. Rg5 {[%clk 0:00:23.6]} 42... Kh6 {[%clk 0:00:17.7]}
43. Bxf7 {[%clk 0:00:20.4]} 43... Rxf7 {[%clk 0:00:16.2]} 44. Rgxg6+ {[%clk
0:00:19]} 44... Kh7 {[%clk 0:00:16.7]} 45. Rh6+ {[%clk 0:00:19.5]} 45... Kg7
{[%clk 0:00:16.6]} 46. Rxh5 {[%clk 0:00:20]} 46... Rff2 {[%clk 0:00:15.3]} 47.
Rg5+ {[%clk 0:00:20.6]} 47... Kf7 {[%clk 0:00:15.5]} 48. a4 {[%clk 0:00:21.2]}
48... Ra2 {[%clk 0:00:15.6]} 49. a5 {[%clk 0:00:20.2]} 49... Rf4 {[%clk
0:00:16]} 50. Rc7+ {[%clk 0:00:20.1]} 50... Kf6 {[%clk 0:00:15.7]} 51. Kg3
{[%clk 0:00:19.8]} 51... Rfa4 {[%clk 0:00:15.6]} 52. Rcc5 {[%clk 0:00:19.2]}
52... R2a3+ {[%clk 0:00:16.5]} 53. Kh2 {[%clk 0:00:18.7]} 53... Rxh4+ {[%clk
0:00:16.8]} 54. Kg1 {[%clk 0:00:19.1]} 54... Ra1+ {[%clk 0:00:17.6]} 55. Kf2
{[%clk 0:00:18.9]} 55... Rha4 {[%clk 0:00:18.5]} 56. Rgf5+ {[%clk 0:00:18.1]}
56... Ke6 {[%clk 0:00:18.8]} 57. Rfe5+ {[%clk 0:00:18.7]} 57... Kd6 {[%clk
0:00:19]} 58. Red5+ {[%clk 0:00:19.4]} 58... Ke6 {[%clk 0:00:19.6]} 59. g3
{[%clk 0:00:19.2]} 59... R1a2+ {[%clk 0:00:18.9]} 60. Kf3 {[%clk 0:00:18.7]}
60... R2a3+ {[%clk 0:00:18.1]} 61. Kg2 {[%clk 0:00:19.3]} 61... Rg4 {[%clk
0:00:18.4]} 62. Rg5 {[%clk 0:00:18.4]} 62... Raxg3+ {[%clk 0:00:16.1]} 63. Kf2
{[%clk 0:00:09]} 63... Rxg5 {[%clk 0:00:17]} 64. Rc6+ {[%clk 0:00:08.6]} 64...
Kd7 {[%clk 0:00:17.2]} 65. Rb6 {[%clk 0:00:08]} 65... Rg2+ {[%clk 0:00:17]} 66.
Ke3 {[%clk 0:00:08]} 66... Ra2 {[%clk 0:00:17.9]} 67. a6 {[%clk 0:00:07.4]}
67... Rga5 {[%clk 0:00:14.1]} 68. Rb7+ {[%clk 0:00:08]} 68... Kc6 {[%clk
0:00:14.2]} 69. Rh7 {[%clk 0:00:08.7]} 69... Rxa6 {[%clk 0:00:14.6]} 70. Rh6+
{[%clk 0:00:09.4]} 70... Kd7 {[%clk 0:00:15.1]} 71. Rxa6 {[%clk 0:00:10.1]} 0-1

[Event "Early-Titled-Tuesday-Blitz-May-14-2024"]
[Site "Chess.com"]
[Date "2024.05.14"]
[Round "2"]
[White "1stSecond"]
[Black "shrek4life02"]
[Result "1-0"]
[WhiteElo "2893"]
[BlackElo "2605"]
[TimeControl "180+1"]
[EndTime "8:19:47 PDT"]
[Termination "1stSecond won on time"]

1. Nf3 {[%clk 0:03:00.9]} 1... Nf6 {[%clk 0:02:58.8]} 2. d4 {[%clk 0:03:01.5]}
2... e6 {[%clk 0:02:58.7]} 3. g3 {[%clk 0:03:01.2]} 3... b6 {[%clk 0:02:57.8]}
4. Bg2 {[%clk 0:03:02.1]} 4... Bb7 {[%clk 0:02:58.5]} 5. O-O {[%clk 0:03:02.7]}
5... Be7 {[%clk 0:02:58.3]} 6. Qd3 {[%clk 0:03:00.6]} 6... d5 {[%clk 0:02:58.2]}
7. c4 {[%clk 0:02:57.6]} 7... dxc4 {[%clk 0:02:57.6]} 8. Qxc4 {[%clk 0:02:57.6]}
8... O-O {[%clk 0:02:58.2]} 9. Nc3 {[%clk 0:02:56.7]} 9... c5 {[%clk 0:02:45.1]}
10. Rd1 {[%clk 0:02:54.2]} 10... Qc8 {[%clk 0:02:42.9]} 11. dxc5 {[%clk
0:02:34.4]} 11... Bxc5 {[%clk 0:02:42.3]} 12. Qh4 {[%clk 0:02:34.4]} 12... Nbd7
{[%clk 0:02:33.2]} 13. Bg5 {[%clk 0:02:33.2]} 13... h6 {[%clk 0:02:07.2]} 14.
Bxf6 {[%clk 0:02:16.6]} 14... Nxf6 {[%clk 0:02:07]} 15. Rac1 {[%clk 0:02:17.2]}
15... Qb8 {[%clk 0:02:02.1]} 16. e3 {[%clk 0:01:40.4]} 16... Rd8 {[%clk
0:01:58.3]} 17. Qf4 {[%clk 0:01:31.9]} 17... Qxf4 {[%clk 0:01:57.8]} 18. gxf4
{[%clk 0:01:32.8]} 18... Rac8 {[%clk 0:01:29]} 19. Ne5 {[%clk 0:01:30.3]} 19...
Bxg2 {[%clk 0:01:27.9]} 20. Kxg2 {[%clk 0:01:31.2]} 20... Bd6 {[%clk 0:01:24.3]}
21. Nf3 {[%clk 0:01:07.8]} 21... a6 {[%clk 0:01:13.3]} 22. Na4 {[%clk
0:00:54.9]} 22... Rxc1 {[%clk 0:01:14.2]} 23. Rxc1 {[%clk 0:00:55]} 23... b5
{[%clk 0:01:14.1]} 24. Nb6 {[%clk 0:00:50.7]} 24... Ne4 {[%clk 0:01:11.5]} 25.
Rc6 {[%clk 0:00:48.4]} 25... Be7 {[%clk 0:01:01.4]} 26. a4 {[%clk 0:00:23.3]}
26... Bf6 {[%clk 0:00:59.3]} 27. b3 {[%clk 0:00:14]} 27... g6 {[%clk 0:00:56.3]}
28. Rc8 {[%clk 0:00:11.4]} 28... Rxc8 {[%clk 0:00:55.7]} 29. Nxc8 {[%clk
0:00:12.3]} 29... Nc5 {[%clk 0:00:55.5]} 30. axb5 {[%clk 0:00:12.2]} 30... axb5
{[%clk 0:00:56.4]} 31. Na7 {[%clk 0:00:12.6]} 31... b4 {[%clk 0:00:52.9]} 32.
Nc6 {[%clk 0:00:13.1]} 32... Bc3 {[%clk 0:00:48.4]} 33. Nfd4 {[%clk 0:00:13]}
33... Kf8 {[%clk 0:00:46.3]} 34. Nc2 {[%clk 0:00:13]} 34... Nxb3 {[%clk
0:00:45.7]} 35. N2xb4 {[%clk 0:00:13.4]} 35... Bxb4 {[%clk 0:00:45.9]} 36. Nxb4
{[%clk 0:00:14.3]} 36... Nc5 {[%clk 0:00:46.6]} 37. Kf3 {[%clk 0:00:14.9]} 37...
Ke7 {[%clk 0:00:46.6]} 38. Nc2 {[%clk 0:00:15]} 38... Kf6 {[%clk 0:00:44.7]} 39.
Nb4 {[%clk 0:00:15.6]} 39... Kg7 {[%clk 0:00:44.6]} 40. Nc6 {[%clk 0:00:16]}
40... Kf6 {[%clk 0:00:44.7]} 41. Ne5 {[%clk 0:00:16.7]} 41... Kg7 {[%clk
0:00:44.1]} 42. Ke2 {[%clk 0:00:16]} 42... Kf6 {[%clk 0:00:43.3]} 43. f3 {[%clk
0:00:16.3]} 43... Kg7 {[%clk 0:00:43.7]} 44. Kd2 {[%clk 0:00:15.8]} 44... Kf6
{[%clk 0:00:44.2]} 45. Kc3 {[%clk 0:00:16.2]} 45... Nb7 {[%clk 0:00:43.6]} 46.
Kd4 {[%clk 0:00:14.1]} 46... Nd6 {[%clk 0:00:43.8]} 47. e4 {[%clk 0:00:14.3]}
47... Kg7 {[%clk 0:00:44.3]} 48. Nd7 {[%clk 0:00:13.9]} 48... Ne8 {[%clk
0:00:43.9]} 49. Ke5 {[%clk 0:00:13]} 49... Nc7 {[%clk 0:00:43.2]} 50. Nf6 {[%clk
0:00:12]} 50... Nb5 {[%clk 0:00:39.7]} 51. h4 {[%clk 0:00:11.9]} 51... h5 {[%clk
0:00:39.6]} 52. Ne8+ {[%clk 0:00:11.9]} 52... Kf8 {[%clk 0:00:39.8]} 53. Nf6
{[%clk 0:00:12.8]} 53... Kg7 {[%clk 0:00:40.2]} 54. Nd7 {[%clk 0:00:11.4]} 54...
Nc3 {[%clk 0:00:38.5]} 55. Kd4 {[%clk 0:00:10.5]} 55... Ne2+ {[%clk 0:00:35]}
56. Ke3 {[%clk 0:00:10.7]} 56... Nc3 {[%clk 0:00:35.7]} 57. Kd3 {[%clk
0:00:11.2]} 57... Nb5 {[%clk 0:00:35.4]} 58. Kc4 {[%clk 0:00:11.4]} 58... Nd6+
{[%clk 0:00:34.8]} 59. Kc5 {[%clk 0:00:11.6]} 59... Ne8 {[%clk 0:00:35]} 60. Kc6
{[%clk 0:00:09.6]} 60... f6 {[%clk 0:00:22.7]} 61. Nc5 {[%clk 0:00:08.8]} 61...
Kf7 {[%clk 0:00:21.9]} 62. Kd7 {[%clk 0:00:09.4]} 62... Ng7 {[%clk 0:00:22.6]}
63. Nb7 {[%clk 0:00:09.2]} 63... g5 {[%clk 0:00:22.6]} 64. Nd8+ {[%clk
0:00:06.5]} 64... Kg6 {[%clk 0:00:22]} 65. Nxe6 {[%clk 0:00:05.6]} 65... Nxe6
{[%clk 0:00:21.8]} 66. f5+ {[%clk 0:00:06.2]} 66... Kg7 {[%clk 0:00:07.7]} 67.
fxe6 {[%clk 0:00:07.1]} 67... gxh4 {[%clk 0:00:08.6]} 68. e7 {[%clk 0:00:07.7]}
68... h3 {[%clk 0:00:09.5]} 69. e8=Q {[%clk 0:00:08.5]} 69... Kh6 {[%clk
0:00:10.4]} 70. Qh8+ {[%clk 0:00:08.5]} 70... Kg5 {[%clk 0:00:11.3]} 71. Qg8+
{[%clk 0:00:09.1]} 71... Kf4 {[%clk 0:00:11.7]} 72. Qg1 {[%clk 0:00:08.1]} 72...
Kxf3 {[%clk 0:00:12.3]} 73. Qh2 {[%clk 0:00:08.7]} 73... Kg4 {[%clk 0:00:12.2]}
74. Ke6 {[%clk 0:00:09.2]} 74... f5 {[%clk 0:00:12.7]} 75. exf5 {[%clk
0:00:09.8]} 75... h4 {[%clk 0:00:13.6]} 76. f6 {[%clk 0:00:10.5]} 76... Kf3
{[%clk 0:00:14.3]} 77. f7 {[%clk 0:00:11]} 77... Kg4 {[%clk 0:00:15.2]} 78. f8=Q
{[%clk 0:00:11.5]} 78... Kg5 {[%clk 0:00:15.7]} 79. Qxh3 {[%clk 0:00:11.8]}
79... Kh5 {[%clk 0:00:16.4]} 80. Qg8 {[%clk 0:00:10.7]} 1-0

[Event "Early-Titled-Tuesday-Blitz-May-14-2024"]
[Site "Chess.com"]
[Date "2024.05.14"]
[Round "2"]
[White "Kombinator01"]
[Black "Aslanov_Umid"]
[Result "0-1"]
[WhiteElo "2374"]
[BlackElo "2629"]
[TimeControl "180+1"]
[EndTime "8:19:48 PDT"]
[Termination "Aslanov_Umid won on time"]

1. e4 {[%clk 0:03:00.9]} 1... c5 {[%clk 0:02:59.9]} 2. Nf3 {[%clk 0:03:00.6]}
2... d6 {[%clk 0:03:00.4]} 3. d4 {[%clk 0:03:00]} 3... cxd4 {[%clk 0:03:01.3]}
4. Nxd4 {[%clk 0:03:00.1]} 4... Nf6 {[%clk 0:03:00.2]} 5. f3 {[%clk 0:02:59.4]}
5... e5 {[%clk 0:02:59.4]} 6. Nb3 {[%clk 0:02:58.3]} 6... d5 {[%clk 0:02:54.2]}
7. Bg5 {[%clk 0:02:56.9]} 7... d4 {[%clk 0:02:52.8]} 8. c3 {[%clk 0:02:55.8]}
8... Nc6 {[%clk 0:02:51.9]} 9. Bb5 {[%clk 0:02:53]} 9... Bd7 {[%clk 0:02:43.8]}
10. Bxc6 {[%clk 0:02:49.3]} 10... Bxc6 {[%clk 0:02:43.7]} 11. cxd4 {[%clk
0:02:49.4]} 11... Bb4+ {[%clk 0:02:40.2]} 12. Nc3 {[%clk 0:02:48.8]} 12... exd4
{[%clk 0:02:21.7]} 13. Qxd4 {[%clk 0:02:46.2]} 13... Qxd4 {[%clk 0:02:21.5]} 14.
Nxd4 {[%clk 0:02:46.9]} 14... Bd7 {[%clk 0:02:20]} 15. Ke2 {[%clk 0:02:32.3]}
15... Rc8 {[%clk 0:02:16.1]} 16. Rac1 {[%clk 0:02:31.3]} 16... Be7 {[%clk
0:02:09.3]} 17. Rhd1 {[%clk 0:02:25.6]} 17... O-O {[%clk 0:02:06.4]} 18. Bxf6
{[%clk 0:02:14.1]} 18... Bxf6 {[%clk 0:01:58.3]} 19. Nd5 {[%clk 0:02:13.6]}
19... Bg5 {[%clk 0:01:29]} 20. f4 {[%clk 0:02:02.4]} 20... Bg4+ {[%clk
0:01:25.9]} 21. Nf3 {[%clk 0:02:01.2]} 21... Bd8 {[%clk 0:01:26]} 22. h3 {[%clk
0:01:56.5]} 22... Bd7 {[%clk 0:01:24.1]} 23. Ne5 {[%clk 0:01:50]} 23... Bb5+
{[%clk 0:01:24.4]} 24. Ke3 {[%clk 0:01:48.5]} 24... Bh4 {[%clk 0:01:15.6]} 25.
b3 {[%clk 0:01:34.5]} 25... a5 {[%clk 0:00:44.8]} 26. Rxc8 {[%clk 0:01:29.9]}
26... Rxc8 {[%clk 0:00:44.7]} 27. g3 {[%clk 0:01:29.9]} 27... Bd8 {[%clk
0:00:45]} 28. a4 {[%clk 0:01:21.6]} 28... Ba6 {[%clk 0:00:43.7]} 29. g4 {[%clk
0:01:02.8]} 29... b5 {[%clk 0:00:42.4]} 30. Ra1 {[%clk 0:00:53.7]} 30... b4
{[%clk 0:00:37.2]} 31. Kd4 {[%clk 0:00:48.9]} 31... Rc2 {[%clk 0:00:26.1]} 32.
Nc4 {[%clk 0:00:45.8]} 32... Bb7 {[%clk 0:00:22.2]} 33. Rd1 {[%clk 0:00:40.1]}
33... Kf8 {[%clk 0:00:17]} 34. Kc5 {[%clk 0:00:35.5]} 34... Rh2 {[%clk
0:00:13.2]} 35. Ndb6 {[%clk 0:00:33.2]} 35... Be7+ {[%clk 0:00:12.7]} 36. Kb5
{[%clk 0:00:33.5]} 36... Bxe4 {[%clk 0:00:12.3]} 37. Nxa5 {[%clk 0:00:27.6]}
37... Rxh3 {[%clk 0:00:11.7]} 38. Nd7+ {[%clk 0:00:19.9]} 38... Ke8 {[%clk
0:00:11.8]} 39. Ne5 {[%clk 0:00:19.6]} 39... h5 {[%clk 0:00:12]} 40. gxh5 {[%clk
0:00:19.6]} 40... Rxh5 {[%clk 0:00:12.9]} 41. Kc4 {[%clk 0:00:19.5]} 41... Rh3
{[%clk 0:00:11.7]} 42. Nac6 {[%clk 0:00:15.8]} 42... Rc3+ {[%clk 0:00:11.9]} 43.
Kb5 {[%clk 0:00:15]} 43... Rxb3 {[%clk 0:00:09.1]} 44. Nxe7 {[%clk 0:00:15.2]}
44... Kxe7 {[%clk 0:00:10]} 45. Rd7+ {[%clk 0:00:15.4]} 45... Ke6 {[%clk
0:00:10.7]} 46. Rxf7 {[%clk 0:00:14.3]} 46... Rb1 {[%clk 0:00:10.1]} 47. Rxg7
{[%clk 0:00:14.5]} 47... b3 {[%clk 0:00:09.7]} 48. Nc4 {[%clk 0:00:14.4]} 48...
Bd3 {[%clk 0:00:09.8]} 49. Kb4 {[%clk 0:00:13.1]} 49... b2 {[%clk 0:00:10.4]}
50. Rb7 {[%clk 0:00:11]} 50... Bxc4 {[%clk 0:00:09]} 51. Kc3 {[%clk 0:00:09.6]}
51... Bd5 {[%clk 0:00:04.8]} 52. Rxb2 {[%clk 0:00:09.5]} 52... Rf1 {[%clk
0:00:05.3]} 53. Re2+ {[%clk 0:00:08.8]} 53... Kd6 {[%clk 0:00:05.7]} 54. Rd2
{[%clk 0:00:08.1]} 54... Rxf4 {[%clk 0:00:05.8]} 55. Rd4 {[%clk 0:00:08.8]}
55... Rf3+ {[%clk 0:00:05.8]} 56. Kb4 {[%clk 0:00:09.3]} 56... Kc6 {[%clk
0:00:05.9]} 57. Ka5 {[%clk 0:00:09.4]} 57... Kc5 {[%clk 0:00:06.2]} 58. Rd1
{[%clk 0:00:09.5]} 58... Rf6 {[%clk 0:00:05.6]} 59. Rb1 {[%clk 0:00:05.6]} 59...
Bc4 {[%clk 0:00:05.2]} 60. Rb6 {[%clk 0:00:05.4]} 60... Rf7 {[%clk 0:00:02.5]}
61. Rb7 {[%clk 0:00:02.8]} 61... Rf8 {[%clk 0:00:02.1]} 62. Rc7+ {[%clk
0:00:03]} 62... Kd5 {[%clk 0:00:02]} 63. Rd7+ {[%clk 0:00:03.5]} 63... Kc6
{[%clk 0:00:02.6]} 64. Rd4 {[%clk 0:00:03.3]} 64... Kc5 {[%clk 0:00:03]} 65. Rd8
{[%clk 0:00:02.6]} 65... Rf6 {[%clk 0:00:02.9]} 66. Rc8+ {[%clk 0:00:01.9]}
66... Kd4 {[%clk 0:00:02.8]} 67. Kb4 {[%clk 0:00:01.9]} 67... Rb6+ {[%clk
0:00:02.4]} 68. Ka5 {[%clk 0:00:00.2]} 68... Ra6+ {[%clk 0:00:02.4]} 69. Kb4
{[%clk 0:00:00.6]} 69... Ra7 {[%clk 0:00:02.9]} 70. a5 {[%clk 0:00:00.5]} 70...
Rb7+ {[%clk 0:00:03.1]} 71. Ka4 {[%clk 0:00:00.2]} 71... Kc3 {[%clk 0:00:03.4]}
0-1